[Event "*** SCC Grand Prix: Titled Tuesday Blitz"]
[Site "Chess.com"]
[Date "2020.07.14"]
[Round "2"]
[White "SaqoChess_Twitch"]
[Black "Chuchofrio1"]
[Result "1-0"]
[WhiteElo "2416"]
[BlackElo "2178"]
[TimeControl "180+1"]
[EndTime "10:16:57 PDT"]
[Termination "SaqoChess_Twitch won by checkmate"]

1. d4 {[%clk 0:03:00.9]} 1... Nf6 {[%clk 0:02:59.4]} 2. c4 {[%clk 0:03:01.1]}
2... e6 {[%clk 0:02:59.4]} 3. Nc3 {[%clk 0:03:01.5]} 3... Bb4 {[%clk 0:02:59.2]}
4. a3 {[%clk 0:03:01.9]} 4... Bxc3+ {[%clk 0:02:57]} 5. bxc3 {[%clk 0:03:02.8]}
5... d5 {[%clk 0:02:52.6]} 6. e3 {[%clk 0:03:01.7]} 6... c6 {[%clk 0:02:52.4]}
7. Bd3 {[%clk 0:02:56.2]} 7... b6 {[%clk 0:02:48.2]} 8. cxd5 {[%clk 0:02:54.8]}
8... cxd5 {[%clk 0:02:47.8]} 9. Ne2 {[%clk 0:02:55.7]} 9... O-O {[%clk
0:02:47.5]} 10. O-O {[%clk 0:02:55.7]} 10... Ba6 {[%clk 0:02:47.4]} 11. f3
{[%clk 0:02:54.6]} 11... Qc8 {[%clk 0:02:45]} 12. e4 {[%clk 0:02:54.1]} 12...
Bxd3 {[%clk 0:02:39]} 13. Qxd3 {[%clk 0:02:54]} 13... Qa6 {[%clk 0:02:39]} 14.
Qxa6 {[%clk 0:02:53.1]} 14... Nxa6 {[%clk 0:02:38.8]} 15. e5 {[%clk 0:02:54]}
15... Nd7 {[%clk 0:02:38.8]} 16. f4 {[%clk 0:02:54.9]} 16... f5 {[%clk
0:02:36.9]} 17. a4 {[%clk 0:02:49.5]} 17... Nab8 {[%clk 0:02:33.5]} 18. a5
{[%clk 0:02:49.5]} 18... Nc6 {[%clk 0:02:32.8]} 19. axb6 {[%clk 0:02:49.1]}
19... axb6 {[%clk 0:02:32.9]} 20. Ba3 {[%clk 0:02:48.4]} 20... Rfc8 {[%clk
0:02:31.9]} 21. Bd6 {[%clk 0:02:48.7]} 21... Na5 {[%clk 0:02:30.5]} 22. Bb4
{[%clk 0:02:46.9]} 22... Nb3 {[%clk 0:02:22]} 23. Rxa8 {[%clk 0:02:45.7]} 23...
Rxa8 {[%clk 0:02:21.4]} 24. Nc1 {[%clk 0:02:43.7]} 24... Nd2 {[%clk 0:02:18.8]}
25. Rd1 {[%clk 0:02:41.9]} 25... Ne4 {[%clk 0:02:12.4]} 26. Nd3 {[%clk
0:02:41.6]} 26... Ra2 {[%clk 0:02:09.6]} 27. h3 {[%clk 0:02:41.9]} 27... h5
{[%clk 0:02:06.2]} 28. Rf1 {[%clk 0:02:39.7]} 28... Nb8 {[%clk 0:01:56.6]} 29.
Nf2 {[%clk 0:02:38.3]} 29... Ng3 {[%clk 0:01:52.6]} 30. Rb1 {[%clk 0:02:24]}
30... Ne2+ {[%clk 0:01:48.9]} 31. Kh2 {[%clk 0:02:20.9]} 31... Nxf4 {[%clk
0:01:48.8]} 32. Rf1 {[%clk 0:02:20.6]} 32... Nc6 {[%clk 0:01:34.8]} 33. Kg3
{[%clk 0:02:18.6]} 33... Ne2+ {[%clk 0:01:28.1]} 34. Kh4 {[%clk 0:02:18.5]}
34... Nxb4 {[%clk 0:01:22.4]} 35. cxb4 {[%clk 0:02:19.4]} 35... Nxd4 {[%clk
0:01:22.4]} 36. Kxh5 {[%clk 0:02:19.5]} 36... Nc6 {[%clk 0:01:16.6]} 37. g4
{[%clk 0:02:19.3]} 37... Nxe5 {[%clk 0:01:08.1]} 38. gxf5 {[%clk 0:02:18.8]}
38... exf5 {[%clk 0:01:07.9]} 39. Kg5 {[%clk 0:02:19.7]} 39... Nf3+ {[%clk
0:00:53.2]} 40. Kxf5 {[%clk 0:02:19.2]} 40... Nh2 {[%clk 0:00:52.9]} 41. Rc1
{[%clk 0:02:11.5]} 41... Rxf2+ {[%clk 0:00:52]} 42. Ke5 {[%clk 0:02:12.4]} 42...
Rb2 {[%clk 0:00:45]} 43. Kxd5 {[%clk 0:02:06.3]} 43... Rxb4 {[%clk 0:00:44.8]}
44. Rc3 {[%clk 0:02:07.2]} 44... Nf1 {[%clk 0:00:38.7]} 45. Rd3 {[%clk
0:02:02.8]} 45... Kh7 {[%clk 0:00:31.4]} 46. Ke5 {[%clk 0:02:00.9]} 46... Kh6
{[%clk 0:00:26.3]} 47. Kf5 {[%clk 0:02:00.7]} 47... g6+ {[%clk 0:00:24.8]} 48.
Kf6 {[%clk 0:02:00.4]} 48... Re4 {[%clk 0:00:18.9]} 49. Rd8 {[%clk 0:01:59.5]}
49... Kh5 {[%clk 0:00:15]} 50. Rh8# {[%clk 0:01:58.1]} 1-0

[Event "*** SCC Grand Prix: Titled Tuesday Blitz"]
[Site "Chess.com"]
[Date "2020.07.14"]
[Round "2"]
[White "JoakimVonAnd"]
[Black "Roza_Idrisova"]
[Result "1-0"]
[WhiteElo "2445"]
[BlackElo "2239"]
[TimeControl "180+1"]
[EndTime "10:16:58 PDT"]
[Termination "JoakimVonAnd won by resignation"]

1. d4 {[%clk 0:03:00.9]} 1... d5 {[%clk 0:02:59.5]} 2. c4 {[%clk 0:03:00.3]}
2... c6 {[%clk 0:02:59.6]} 3. cxd5 {[%clk 0:03:00.3]} 3... cxd5 {[%clk
0:02:59.2]} 4. Nc3 {[%clk 0:03:00.9]} 4... Nc6 {[%clk 0:02:59.4]} 5. Bf4 {[%clk
0:02:58.1]} 5... Nf6 {[%clk 0:02:59.4]} 6. e3 {[%clk 0:02:56.9]} 6... Bf5 {[%clk
0:02:59.2]} 7. Rc1 {[%clk 0:02:52.5]} 7... a6 {[%clk 0:02:58.1]} 8. Nf3 {[%clk
0:02:51.3]} 8... e6 {[%clk 0:02:58.2]} 9. Bd3 {[%clk 0:02:51.3]} 9... Bxd3
{[%clk 0:02:57.5]} 10. Qxd3 {[%clk 0:02:52.2]} 10... Bd6 {[%clk 0:02:57.8]} 11.
Bg3 {[%clk 0:02:51.8]} 11... O-O {[%clk 0:02:57.2]} 12. O-O {[%clk 0:02:50.2]}
12... Rc8 {[%clk 0:02:56.8]} 13. Na4 {[%clk 0:02:48.5]} 13... Bxg3 {[%clk
0:02:56.5]} 14. hxg3 {[%clk 0:02:47.8]} 14... Ne4 {[%clk 0:02:54.1]} 15. Nc5
{[%clk 0:02:44.7]} 15... Nxc5 {[%clk 0:02:46.1]} 16. Rxc5 {[%clk 0:02:45.6]}
16... Na7 {[%clk 0:02:31.7]} 17. Rfc1 {[%clk 0:02:44.1]} 17... Rxc5 {[%clk
0:02:30.5]} 18. Rxc5 {[%clk 0:02:45]} 18... Qb8 {[%clk 0:02:29.7]} 19. Ne5
{[%clk 0:02:36.1]} 19... Rc8 {[%clk 0:02:28.1]} 20. Qc2 {[%clk 0:02:31.2]} 20...
Rxc5 {[%clk 0:02:27.3]} 21. Qxc5 {[%clk 0:02:32.1]} 21... f6 {[%clk 0:01:58.5]}
22. Nd7 {[%clk 0:02:27]} 22... Qc8 {[%clk 0:01:53.9]} 23. Nxf6+ {[%clk
0:02:21.5]} 23... gxf6 {[%clk 0:01:52.8]} 24. Qxa7 {[%clk 0:02:22.3]} 24... Qc1+
{[%clk 0:01:43.7]} 25. Kh2 {[%clk 0:02:22.2]} 25... Qxb2 {[%clk 0:01:43.7]} 26.
Qb8+ {[%clk 0:02:21.8]} 26... Kf7 {[%clk 0:01:43.7]} 27. Qc7+ {[%clk 0:02:21.7]}
27... Kg6 {[%clk 0:01:43]} 28. Kg1 {[%clk 0:02:11.6]} 28... Qxa2 {[%clk
0:01:38.8]} 29. Qxb7 {[%clk 0:02:10.6]} 29... Qa1+ {[%clk 0:01:35.3]} 30. Kh2
{[%clk 0:02:10.1]} 30... Qa2 {[%clk 0:01:31.5]} 31. Kg1 {[%clk 0:02:07.2]} 31...
Qa1+ {[%clk 0:01:30.8]} 32. Kh2 {[%clk 0:02:07.1]} 32... Qa2 {[%clk 0:01:30.5]}
33. Qc8 {[%clk 0:02:06.9]} 33... Qxf2 {[%clk 0:01:25]} 34. Qxe6 {[%clk
0:02:06.5]} 34... a5 {[%clk 0:01:17.7]} 35. Qg4+ {[%clk 0:02:06]} 35... Kf7
{[%clk 0:01:16.9]} 36. Qd7+ {[%clk 0:02:05.4]} 36... Kg6 {[%clk 0:01:16.4]} 37.
Qxd5 {[%clk 0:02:03.2]} 37... Qxe3 {[%clk 0:01:14.8]} 38. Qg8+ {[%clk
0:01:57.5]} 38... Kh6 {[%clk 0:01:06.9]} 39. d5 {[%clk 0:01:56]} 39... Qd4
{[%clk 0:00:53.1]} 40. Qf8+ {[%clk 0:01:53.8]} 40... Kg6 {[%clk 0:00:52.6]} 41.
d6 {[%clk 0:01:53.2]} 41... a4 {[%clk 0:00:52.7]} 42. Qe8+ {[%clk 0:01:53.3]}
42... Kh6 {[%clk 0:00:47.8]} 43. d7 {[%clk 0:01:53.4]} 43... a3 {[%clk 0:00:48]}
44. d8=Q {[%clk 0:01:53.4]} 44... Qb2 {[%clk 0:00:40.2]} 45. Qe3+ {[%clk
0:01:50.4]} 45... Kg6 {[%clk 0:00:37.5]} 46. Qde8+ {[%clk 0:01:44.8]} 46... Kg7
{[%clk 0:00:32.5]} 47. Q3e7+ {[%clk 0:01:41.7]} 47... Kh6 {[%clk 0:00:31.7]} 48.
Q8f8+ {[%clk 0:01:40.5]} 48... Kg5 {[%clk 0:00:29.5]} 49. Qfg7+ {[%clk
0:01:35.3]} 49... Kf5 {[%clk 0:00:24.2]} 50. g4+ {[%clk 0:01:35.4]} 50... Kf4
{[%clk 0:00:22.9]} 51. Qgxf6+ {[%clk 0:01:35.3]} 51... Qxf6 {[%clk 0:00:22.6]}
52. Qxf6+ {[%clk 0:01:36.2]} 52... Kxg4 {[%clk 0:00:22.6]} 53. Qa1 {[%clk
0:01:35.2]} 1-0

[Event "*** SCC Grand Prix: Titled Tuesday Blitz"]
[Site "Chess.com"]
[Date "2020.07.14"]
[Round "2"]
[White "PrinceMurad09"]
[Black "ShimanovAlex"]
[Result "0-1"]
[WhiteElo "2516"]
[BlackElo "2828"]
[TimeControl "180+1"]
[EndTime "10:16:59 PDT"]
[Termination "ShimanovAlex won by resignation"]

1. e4 {[%clk 0:03:00.9]} 1... c6 {[%clk 0:02:57.3]} 2. Nf3 {[%clk 0:03:01.1]}
2... d5 {[%clk 0:02:57.2]} 3. Nc3 {[%clk 0:03:01.7]} 3... Bg4 {[%clk 0:02:55.7]}
4. h3 {[%clk 0:03:01.7]} 4... Bxf3 {[%clk 0:02:56]} 5. Qxf3 {[%clk 0:03:02.6]}
5... Nf6 {[%clk 0:02:56.1]} 6. d3 {[%clk 0:02:41]} 6... e6 {[%clk 0:02:55.6]} 7.
g4 {[%clk 0:02:40]} 7... Bb4 {[%clk 0:02:54.9]} 8. Bd2 {[%clk 0:02:40]} 8... d4
{[%clk 0:02:54]} 9. Nb1 {[%clk 0:02:39.9]} 9... Qb6 {[%clk 0:02:51.1]} 10. c3
{[%clk 0:02:24.5]} 10... Be7 {[%clk 0:02:46.4]} 11. b3 {[%clk 0:02:22.3]} 11...
c5 {[%clk 0:02:44]} 12. Bg2 {[%clk 0:02:20.2]} 12... Nc6 {[%clk 0:02:43.2]} 13.
O-O {[%clk 0:02:18.8]} 13... O-O {[%clk 0:02:37.1]} 14. Na3 {[%clk 0:02:18.5]}
14... Qa6 {[%clk 0:02:33.4]} 15. Nc4 {[%clk 0:02:15.4]} 15... b5 {[%clk
0:02:33.1]} 16. Nb2 {[%clk 0:02:15.3]} 16... dxc3 {[%clk 0:02:26.9]} 17. Bxc3
{[%clk 0:02:15.2]} 17... Qb6 {[%clk 0:02:27.5]} 18. Qg3 {[%clk 0:02:08]} 18...
Rad8 {[%clk 0:02:25.7]} 19. g5 {[%clk 0:01:54.1]} 19... Ne8 {[%clk 0:02:20.1]}
20. h4 {[%clk 0:01:51.9]} 20... Nd4 {[%clk 0:02:19.2]} 21. Bxd4 {[%clk
0:01:43.1]} 21... Rxd4 {[%clk 0:02:20.1]} 22. Nd1 {[%clk 0:01:28.3]} 22... Qd6
{[%clk 0:02:13.4]} 23. Qxd6 {[%clk 0:01:27.1]} 23... Bxd6 {[%clk 0:02:09.9]} 24.
Nc3 {[%clk 0:01:12.6]} 24... a6 {[%clk 0:02:08.5]} 25. Rad1 {[%clk 0:01:11]}
25... Be7 {[%clk 0:01:21.5]} 26. Ne2 {[%clk 0:01:08.5]} 26... Rb4 {[%clk
0:01:21.2]} 27. Rc1 {[%clk 0:01:06.1]} 27... a5 {[%clk 0:01:17.9]} 28. Rfd1
{[%clk 0:00:44.5]} 28... a4 {[%clk 0:01:07.1]} 29. bxa4 {[%clk 0:00:45.4]} 29...
Rxa4 {[%clk 0:01:07.1]} 30. Rc2 {[%clk 0:00:45.6]} 30... Nc7 {[%clk 0:01:04.9]}
31. Nc3 {[%clk 0:00:44.9]} 31... Ra5 {[%clk 0:01:04.9]} 32. d4 {[%clk
0:00:42.5]} 32... c4 {[%clk 0:01:05]} 33. d5 {[%clk 0:00:41.7]} 33... Rd8 {[%clk
0:01:03.3]} 34. dxe6 {[%clk 0:00:36.7]} 34... Rxd1+ {[%clk 0:01:02.1]} 35. Nxd1
{[%clk 0:00:37.4]} 35... Nxe6 {[%clk 0:01:02.4]} 36. Nc3 {[%clk 0:00:33]} 36...
Kf8 {[%clk 0:00:54]} 37. Rd2 {[%clk 0:00:30.7]} 37... Bb4 {[%clk 0:00:53]} 38.
Rc2 {[%clk 0:00:30.7]} 38... Nd4 {[%clk 0:00:52.8]} 39. Rc1 {[%clk 0:00:30.5]}
39... Bxc3 {[%clk 0:00:52.6]} 0-1

[Event "*** SCC Grand Prix: Titled Tuesday Blitz"]
[Site "Chess.com"]
[Date "2020.07.14"]
[Round "2"]
[White "Alopekos"]
[Black "guillejr"]
[Result "1-0"]
[WhiteElo "2352"]
[BlackElo "1971"]
[TimeControl "180+1"]
[EndTime "10:16:59 PDT"]
[Termination "Alopekos won on time"]

1. e4 {[%clk 0:03:00.9]} 1... c5 {[%clk 0:02:59]} 2. Nc3 {[%clk 0:03:00.6]} 2...
a6 {[%clk 0:02:57.5]} 3. Nf3 {[%clk 0:02:59.7]} 3... b5 {[%clk 0:02:55.7]} 4. d4
{[%clk 0:03:00.2]} 4... cxd4 {[%clk 0:02:54.8]} 5. Nxd4 {[%clk 0:03:01.1]} 5...
Bb7 {[%clk 0:02:55.2]} 6. Bd3 {[%clk 0:02:59.7]} 6... e6 {[%clk 0:02:53.6]} 7.
O-O {[%clk 0:02:59.4]} 7... Qc7 {[%clk 0:02:47.8]} 8. Re1 {[%clk 0:02:59.1]}
8... d6 {[%clk 0:02:30.9]} 9. a4 {[%clk 0:02:01.8]} 9... b4 {[%clk 0:02:25.5]}
10. Nd5 {[%clk 0:01:47.4]} 10... exd5 {[%clk 0:01:53.6]} 11. exd5+ {[%clk
0:01:48.3]} 11... Kd8 {[%clk 0:01:31.9]} 12. Qf3 {[%clk 0:00:57.5]} 12... Nf6
{[%clk 0:01:04.6]} 13. Bg5 {[%clk 0:00:56.2]} 13... Nd7 {[%clk 0:00:56.8]} 14.
Nc6+ {[%clk 0:00:42.1]} 14... Kc8 {[%clk 0:00:13.9]} 15. Bf5 {[%clk 0:00:37.1]}
15... g6 {[%clk 0:00:05.2]} 16. Bxf6 {[%clk 0:00:30.2]} 16... gxf5 {[%clk
0:00:03.9]} 17. Re8+ {[%clk 0:00:30.7]} 17... Qd8 {[%clk 0:00:03]} 18. Bxd8
{[%clk 0:00:28.2]} 1-0

[Event "*** SCC Grand Prix: Titled Tuesday Blitz"]
[Site "Chess.com"]
[Date "2020.07.14"]
[Round "2"]
[White "Angry_Twin"]
[Black "Filip_Covic"]
[Result "1-0"]
[WhiteElo "2764"]
[BlackElo "2486"]
[TimeControl "180+1"]
[EndTime "10:17:02 PDT"]
[Termination "Angry_Twin won on time"]

1. e4 {[%clk 0:03:00.9]} 1... e5 {[%clk 0:02:59.1]} 2. Nf3 {[%clk 0:03:00.6]}
2... Nc6 {[%clk 0:02:58.5]} 3. Bc4 {[%clk 0:03:01]} 3... g6 {[%clk 0:02:50.8]}
4. O-O {[%clk 0:02:57.7]} 4... Bg7 {[%clk 0:02:43.6]} 5. c3 {[%clk 0:02:57.6]}
5... Nge7 {[%clk 0:02:34.7]} 6. d4 {[%clk 0:02:57.2]} 6... d6 {[%clk 0:02:32.8]}
7. Bg5 {[%clk 0:02:44.6]} 7... h6 {[%clk 0:02:28.4]} 8. Bh4 {[%clk 0:02:44.4]}
8... O-O {[%clk 0:02:20.6]} 9. dxe5 {[%clk 0:02:42.1]} 9... Nxe5 {[%clk
0:02:17.2]} 10. Nxe5 {[%clk 0:02:41.7]} 10... Bxe5 {[%clk 0:02:18.1]} 11. Nd2
{[%clk 0:02:35.9]} 11... g5 {[%clk 0:02:14.3]} 12. Bg3 {[%clk 0:02:35.7]} 12...
Ng6 {[%clk 0:02:14.2]} 13. Qh5 {[%clk 0:02:31.4]} 13... Kg7 {[%clk 0:02:08.8]}
14. Nf3 {[%clk 0:02:28.8]} 14... Bxg3 {[%clk 0:01:51.2]} 15. hxg3 {[%clk
0:02:29.7]} 15... f5 {[%clk 0:01:38.9]} 16. exf5 {[%clk 0:02:27.8]} 16... Bxf5
{[%clk 0:01:39.8]} 17. Nd4 {[%clk 0:02:27.7]} 17... Qf6 {[%clk 0:01:34.8]} 18.
Qf3 {[%clk 0:02:22.3]} 18... Ne5 {[%clk 0:01:26.5]} 19. Qxb7 {[%clk 0:02:18.5]}
19... Bd7 {[%clk 0:00:55.2]} 20. Be2 {[%clk 0:02:13.2]} 20... c5 {[%clk
0:00:49.2]} 21. Nf3 {[%clk 0:02:08.5]} 21... Rab8 {[%clk 0:00:32.1]} 22. Qxa7
{[%clk 0:02:02]} 22... Ra8 {[%clk 0:00:23.3]} 23. Qb7 {[%clk 0:01:57.7]} 23...
Rab8 {[%clk 0:00:23.5]} 24. Qd5 {[%clk 0:01:24.3]} 24... Bc6 {[%clk 0:00:21]}
25. Qd2 {[%clk 0:01:24.3]} 25... Bxf3 {[%clk 0:00:13.1]} 26. Bxf3 {[%clk
0:01:23.3]} 26... Qxf3 {[%clk 0:00:12.6]} 27. gxf3 {[%clk 0:01:24.2]} 27...
Nxf3+ {[%clk 0:00:12.5]} 28. Kg2 {[%clk 0:01:16.9]} 28... Nxd2 {[%clk
0:00:13.4]} 29. Rfe1 {[%clk 0:01:15.4]} 29... Rxb2 {[%clk 0:00:13.3]} 30. Re2
{[%clk 0:01:07.2]} 30... Nc4 {[%clk 0:00:05.5]} 31. Rxb2 {[%clk 0:01:05.9]} 1-0

[Event "*** SCC Grand Prix: Titled Tuesday Blitz"]
[Site "Chess.com"]
[Date "2020.07.14"]
[Round "2"]
[White "Fortitudine"]
[Black "Chigorinetz"]
[Result "0-1"]
[WhiteElo "2281"]
[BlackElo "2506"]
[TimeControl "180+1"]
[EndTime "10:17:04 PDT"]
[Termination "Chigorinetz won by resignation"]

1. d4 {[%clk 0:03:00.9]} 1... d5 {[%clk 0:02:58.6]} 2. Nc3 {[%clk 0:03:00]} 2...
Bg4 {[%clk 0:02:57.1]} 3. Bf4 {[%clk 0:02:37]} 3... Nc6 {[%clk 0:02:52.9]} 4.
Qd2 {[%clk 0:02:30.4]} 4... Nf6 {[%clk 0:02:43.6]} 5. f3 {[%clk 0:02:27.3]} 5...
Bh5 {[%clk 0:02:42.5]} 6. e3 {[%clk 0:02:23.6]} 6... e6 {[%clk 0:02:40.1]} 7. a3
{[%clk 0:02:22.6]} 7... Bd6 {[%clk 0:02:35.2]} 8. Bxd6 {[%clk 0:02:18]} 8...
cxd6 {[%clk 0:02:34.1]} 9. Bd3 {[%clk 0:02:10.7]} 9... Bg6 {[%clk 0:02:33.1]}
10. Nge2 {[%clk 0:02:08.2]} 10... Rc8 {[%clk 0:02:31.3]} 11. h4 {[%clk
0:02:04.9]} 11... a6 {[%clk 0:02:24.5]} 12. Nf4 {[%clk 0:02:02.1]} 12... Bxd3
{[%clk 0:02:21.7]} 13. Qxd3 {[%clk 0:02:02.2]} 13... Na5 {[%clk 0:02:18.9]} 14.
g4 {[%clk 0:01:51.3]} 14... b5 {[%clk 0:02:10.3]} 15. g5 {[%clk 0:01:49.3]}
15... Nd7 {[%clk 0:02:08.5]} 16. Rg1 {[%clk 0:01:39.7]} 16... Nc4 {[%clk
0:02:05.9]} 17. b3 {[%clk 0:01:26]} 17... Na5 {[%clk 0:02:01.4]} 18. Na2 {[%clk
0:01:04.7]} 18... Qb6 {[%clk 0:01:51.9]} 19. h5 {[%clk 0:00:59.1]} 19... Ke7
{[%clk 0:01:42.7]} 20. Nb4 {[%clk 0:00:51]} 20... Qb7 {[%clk 0:01:36.7]} 21. Ke2
{[%clk 0:00:27.7]} 21... Nc6 {[%clk 0:01:34.7]} 22. g6 {[%clk 0:00:20.4]} 22...
hxg6 {[%clk 0:01:27.3]} 23. hxg6 {[%clk 0:00:19.4]} 23... Nxb4 {[%clk
0:01:21.4]} 24. axb4 {[%clk 0:00:20.3]} 24... f5 {[%clk 0:01:16.2]} 25. Rg2
{[%clk 0:00:18]} 25... Nf6 {[%clk 0:01:05.8]} 26. Rag1 {[%clk 0:00:15.4]} 26...
Qc7 {[%clk 0:00:59.6]} 27. Kd1 {[%clk 0:00:14.3]} 27... a5 {[%clk 0:00:58.8]}
28. bxa5 {[%clk 0:00:14.1]} 28... Qxa5 {[%clk 0:00:57.8]} 29. Ke2 {[%clk
0:00:14.1]} 29... Qa2 {[%clk 0:00:55.4]} 30. Qd2 {[%clk 0:00:13.5]} 30... Rxc2
{[%clk 0:00:53.3]} 0-1

[Event "*** SCC Grand Prix: Titled Tuesday Blitz"]
[Site "Chess.com"]
[Date "2020.07.14"]
[Round "2"]
[White "GothamChess"]
[Black "silverback96"]
[Result "1-0"]
[WhiteElo "2601"]
[BlackElo "2226"]
[TimeControl "180+1"]
[EndTime "10:17:05 PDT"]
[Termination "GothamChess won by checkmate"]

1. e4 {[%clk 0:03:00.9]} 1... e6 {[%clk 0:02:59.7]} 2. b3 {[%clk 0:02:53.9]}
2... d5 {[%clk 0:02:59.4]} 3. Bb2 {[%clk 0:02:50.7]} 3... dxe4 {[%clk
0:02:59.3]} 4. Nc3 {[%clk 0:02:50.5]} 4... Nf6 {[%clk 0:02:58.5]} 5. Qe2 {[%clk
0:02:50.8]} 5... Bb4 {[%clk 0:02:32.8]} 6. g4 {[%clk 0:02:49.2]} 6... Qe7 {[%clk
0:02:20.6]} 7. a3 {[%clk 0:02:46]} 7... Bd6 {[%clk 0:02:15.3]} 8. g5 {[%clk
0:02:42.9]} 8... Nd5 {[%clk 0:02:13.8]} 9. Nxe4 {[%clk 0:02:43.5]} 9... Rg8
{[%clk 0:02:05]} 10. Nh3 {[%clk 0:02:29]} 10... Nc6 {[%clk 0:02:03.4]} 11. c4
{[%clk 0:02:24.8]} 11... Nf4 {[%clk 0:01:46.5]} 12. Qe3 {[%clk 0:02:14.9]} 12...
e5 {[%clk 0:01:24.1]} 13. c5 {[%clk 0:02:09.8]} 13... Bxc5 {[%clk 0:01:10.6]}
14. Nxc5 {[%clk 0:02:07.5]} 14... Nxh3 {[%clk 0:01:09.1]} 15. Ne4 {[%clk
0:01:42.7]} 15... Nf4 {[%clk 0:01:06.1]} 16. Rc1 {[%clk 0:01:39.6]} 16... Bf5
{[%clk 0:00:55.8]} 17. Rg1 {[%clk 0:01:39.7]} 17... O-O-O {[%clk 0:00:48.5]} 18.
f3 {[%clk 0:01:40.2]} 18... Qd7 {[%clk 0:00:40.9]} 19. Bc3 {[%clk 0:01:37.3]}
19... Bxe4 {[%clk 0:00:32.8]} 20. fxe4 {[%clk 0:01:35]} 20... f5 {[%clk
0:00:23.1]} 21. Kd1 {[%clk 0:01:30.4]} 21... fxe4 {[%clk 0:00:22.5]} 22. Qxe4
{[%clk 0:01:27.4]} 22... Qf7 {[%clk 0:00:19.7]} 23. Kc2 {[%clk 0:01:25.9]} 23...
Nd4+ {[%clk 0:00:18.1]} 24. Kb1 {[%clk 0:01:17.4]} 24... Qxb3+ {[%clk
0:00:17.2]} 25. Bb2 {[%clk 0:01:18.1]} 25... Rd6 {[%clk 0:00:15.3]} 26. Bc4
{[%clk 0:01:18.1]} 26... Qa4 {[%clk 0:00:13.6]} 27. Bxg8 {[%clk 0:01:17.8]}
27... Rb6 {[%clk 0:00:13.5]} 28. Rxc7+ {[%clk 0:00:56.7]} 28... Kxc7 {[%clk
0:00:12.6]} 29. Qxe5+ {[%clk 0:00:57]} 29... Kc6 {[%clk 0:00:10.6]} 30. Rc1+
{[%clk 0:00:56.8]} 30... Kd7 {[%clk 0:00:08.7]} 31. Rc7+ {[%clk 0:00:54]} 31...
Kd8 {[%clk 0:00:08.4]} 32. Qe7# {[%clk 0:00:54.9]} 1-0

[Event "*** SCC Grand Prix: Titled Tuesday Blitz"]
[Site "Chess.com"]
[Date "2020.07.14"]
[Round "2"]
[White "alexsergeyev"]
[Black "Boudicca64"]
[Result "1-0"]
[WhiteElo "2340"]
[BlackElo "1802"]
[TimeControl "180+1"]
[EndTime "10:17:07 PDT"]
[Termination "alexsergeyev won by resignation"]

1. d4 {[%clk 0:03:00.9]} 1... g6 {[%clk 0:02:56.8]} 2. Nc3 {[%clk 0:02:59.6]}
2... Bg7 {[%clk 0:02:56]} 3. e4 {[%clk 0:02:59.5]} 3... c5 {[%clk 0:02:54.6]} 4.
d5 {[%clk 0:02:55.6]} 4... d6 {[%clk 0:02:52.9]} 5. Nf3 {[%clk 0:02:53.2]} 5...
Nf6 {[%clk 0:02:50.7]} 6. Bb5+ {[%clk 0:02:48.8]} 6... Nbd7 {[%clk 0:02:49.3]}
7. O-O {[%clk 0:02:47]} 7... a6 {[%clk 0:02:47.8]} 8. Bxd7+ {[%clk 0:02:45.4]}
8... Bxd7 {[%clk 0:02:46.6]} 9. e5 {[%clk 0:02:44.8]} 9... Ng4 {[%clk
0:02:29.9]} 10. exd6 {[%clk 0:02:43]} 10... exd6 {[%clk 0:02:26.2]} 11. Re1+
{[%clk 0:02:41.9]} 11... Kf8 {[%clk 0:02:16.8]} 12. Bf4 {[%clk 0:02:39.3]} 12...
Be8 {[%clk 0:01:52.8]} 13. h3 {[%clk 0:02:32]} 13... Nf6 {[%clk 0:01:50.5]} 14.
Qd2 {[%clk 0:02:14.5]} 14... b5 {[%clk 0:01:45]} 15. Bh2 {[%clk 0:01:54.1]}
15... b4 {[%clk 0:01:41.7]} 16. Ne2 {[%clk 0:01:53.1]} 16... Ne4 {[%clk
0:01:36.8]} 17. Qd3 {[%clk 0:01:30]} 17... f5 {[%clk 0:01:29.9]} 18. c3 {[%clk
0:01:29]} 18... Rc8 {[%clk 0:01:23.5]} 19. Rad1 {[%clk 0:01:06.4]} 19... Qb6
{[%clk 0:01:11.6]} 20. Nf4 {[%clk 0:01:00.4]} 20... Bd7 {[%clk 0:00:52.1]} 21.
Ne6+ {[%clk 0:00:47.9]} 21... Bxe6 {[%clk 0:00:50.3]} 22. dxe6 {[%clk
0:00:47.9]} 22... bxc3 {[%clk 0:00:38.5]} 23. bxc3 {[%clk 0:00:46.6]} 23... Bxc3
{[%clk 0:00:36.6]} 24. Rxe4 {[%clk 0:00:44.1]} 24... fxe4 {[%clk 0:00:35.3]} 25.
Qxc3 {[%clk 0:00:43.6]} 25... Rg8 {[%clk 0:00:14.3]} 26. Qf6+ {[%clk 0:00:41.1]}
26... Ke8 {[%clk 0:00:12.6]} 27. Qf7+ {[%clk 0:00:40.3]} 1-0

[Event "*** SCC Grand Prix: Titled Tuesday Blitz"]
[Site "Chess.com"]
[Date "2020.07.14"]
[Round "2"]
[White "731291"]
[Black "RodinMihail"]
[Result "1-0"]
[WhiteElo "2660"]
[BlackElo "2432"]
[TimeControl "180+1"]
[EndTime "10:17:08 PDT"]
[Termination "731291 won by resignation"]

1. d4 {[%clk 0:03:00.9]} 1... d5 {[%clk 0:02:59.8]} 2. Nf3 {[%clk 0:03:00.7]}
2... Nf6 {[%clk 0:02:59.7]} 3. c4 {[%clk 0:03:00.8]} 3... e6 {[%clk 0:03:00.1]}
4. g3 {[%clk 0:03:00.8]} 4... c6 {[%clk 0:03:00.2]} 5. Bg2 {[%clk 0:03:00.8]}
5... Nbd7 {[%clk 0:03:00.9]} 6. O-O {[%clk 0:03:00.3]} 6... Bd6 {[%clk
0:03:01.5]} 7. Bg5 {[%clk 0:03:00.7]} 7... dxc4 {[%clk 0:02:57.7]} 8. e4 {[%clk
0:02:59.5]} 8... e5 {[%clk 0:02:57.9]} 9. Nbd2 {[%clk 0:02:37.9]} 9... b5 {[%clk
0:02:55.1]} 10. Qc2 {[%clk 0:02:06]} 10... Bb7 {[%clk 0:02:50.4]} 11. Rad1
{[%clk 0:02:05.5]} 11... h6 {[%clk 0:02:49.4]} 12. Be3 {[%clk 0:01:59.8]} 12...
Qe7 {[%clk 0:02:39.4]} 13. b3 {[%clk 0:01:38.5]} 13... cxb3 {[%clk 0:02:36.6]}
14. Nxb3 {[%clk 0:01:35.2]} 14... O-O {[%clk 0:02:32.6]} 15. Na5 {[%clk
0:01:34.7]} 15... Rab8 {[%clk 0:02:11.4]} 16. dxe5 {[%clk 0:01:33.9]} 16... Nxe5
{[%clk 0:02:06.6]} 17. Nxe5 {[%clk 0:01:33.6]} 17... Bxe5 {[%clk 0:02:00.3]} 18.
Bxa7 {[%clk 0:01:27.8]} 18... Qc7 {[%clk 0:01:23.9]} 19. Bxb8 {[%clk 0:01:18.9]}
19... Rxb8 {[%clk 0:01:24.8]} 20. Nxb7 {[%clk 0:01:16.9]} 20... Rxb7 {[%clk
0:01:25.7]} 21. f4 {[%clk 0:01:14.9]} 21... Qb6+ {[%clk 0:01:25.7]} 22. Qf2
{[%clk 0:01:07.7]} 22... Bc7 {[%clk 0:01:20.4]} 23. Bf3 {[%clk 0:00:59.6]} 23...
Qa6 {[%clk 0:01:15.5]} 24. Kg2 {[%clk 0:00:55.4]} 24... Ra7 {[%clk 0:01:13.2]}
25. e5 {[%clk 0:00:50.8]} 25... Bb6 {[%clk 0:01:02]} 26. Qd2 {[%clk 0:00:47.4]}
26... Nd7 {[%clk 0:00:49.9]} 27. Bxc6 {[%clk 0:00:45.4]} 27... Ba5 {[%clk
0:00:45.3]} 28. Qd6 {[%clk 0:00:41.3]} 28... Bb4 {[%clk 0:00:40]} 29. Qxb4
{[%clk 0:00:38.8]} 29... Qxc6+ {[%clk 0:00:40.1]} 30. Rf3 {[%clk 0:00:33.3]}
30... Rxa2+ {[%clk 0:00:39.2]} 31. Rd2 {[%clk 0:00:33.8]} 31... Ra4 {[%clk
0:00:33.2]} 32. Qd6 {[%clk 0:00:33.3]} 32... Nb8 {[%clk 0:00:27.2]} 33. Qxb8+
{[%clk 0:00:32.4]} 1-0